fUSD/lending_fUSD_20260409
["ID","MTS","AMOUNT","RATE_DAILY","PERIOD"]
[420149766,1775727042507,-3134.05674469,0.00014,2]
[420149767,1775727042518,-209.398029,0.00014,2]
[420149768,1775727042527,-674.4681078,0.00014048,2]
[420149769,1775727042537,-1149.094443,0.00014069,2]
[420149770,1775727042546,-1459.731903,0.00014069,2]
[420149772,1775727042555,-502.0,0.00014099,2]
[420149774,1775727042565,-623.58710448,0.00014104,2]
[420149776,1775727042575,-599.60298507,0.00014104,2]
[420149777,1775727042584,-200.0,0.00014105,2]
[420149778,1775727042594,-1428.38747117,0.00014105,2]
[420149779,1775727042603,-209.40437684,0.00014105,2]
[420149780,1775727042612,-299.0,0.00014105,6]
[420149781,1775727042622,-166.66,0.0001411,2]
[420149782,1775727042631,-168.0,0.00014113,2]
[420149783,1775727042640,-200.0,0.00014113,2]
[420149784,1775727042649,-168.0,0.00014129,2]
[420149785,1775727042659,-150.0,0.00014147,2]
[420149786,1775727042668,-150.0,0.00014148,2]
[420149787,1775727042678,-500.0,0.00014152,2]
[420149788,1775727042688,-500.0,0.00014152,2]
[420149789,1775727042697,-500.0,0.00014152,2]
[420149790,1775727042706,-500.0,0.00014152,2]
[420149791,1775727042716,-1629.45780915,0.00014152,2]
[420149792,1775727042816,-4431.93219085,0.00014152,2]
[420149793,1775727042826,-6061.39,0.00014152,2]
[420149794,1775727042836,-6061.39,0.00014152,2]
[420149795,1775727042845,-168.0,0.0001417,2]
[420149796,1775727042854,-351.31,0.00014214,2]
[420149797,1775727042863,-168.0,0.00014217,2]
[420149798,1775727042873,-500.0,0.00014222,2]
[420149799,1775727042883,-500.0,0.00014222,2]
[420149800,1775727042892,-500.0,0.00014222,2]
[420149801,1775727042902,-500.0,0.00014222,2]
[420149802,1775727042911,-500.0,0.00014222,2]
[420149803,1775727042920,-500.0,0.00014222,2]
[420149804,1775727042929,-500.0,0.00014222,2]
[420149805,1775727042939,-603.88888953,0.00014222,2]
[420149806,1775727042949,-500.0,0.00014222,2]
[420149807,1775727042958,-500.0,0.00014222,2]
[420149808,1775727042968,-500.0,0.00014222,2]
[420149809,1775727042977,-500.0,0.00014246,2]
[420149810,1775727042986,-500.0,0.00014246,2]
[420149811,1775727042995,-611.47996049,0.00014246,2]
[420149812,1775727043006,-500.0,0.00014246,2]
[420149813,1775727043015,-166.66,0.00014247,2]
[420149814,1775727043025,-150.0,0.00014247,2]
[420149815,1775727043034,-3000.0,0.00014247,2]
[420149816,1775727043043,-986.05,0.00014247,2]
[420149817,1775727043054,-786.15,0.00014247,2]
[420149818,1775727043064,-1000.0,0.0001425,2]
[420149819,1775727043074,-168.0,0.00014253,2]
[420149820,1775727043083,-200.0,0.00014254,2]
[420149821,1775727043093,-1000.0,0.00014258,2]
[420149822,1775727043103,-1000.0,0.0001427,2]
[420149823,1775727043112,-1651.24188523,0.0001427,2]
[420149824,1775727043122,-168.0,0.00014286,2]
[420149825,1775727043133,-500.0,0.00014295,2]
[420149826,1775727043143,-500.0,0.00014295,2]
[420149827,1775727043154,-209.62558004,0.00014296,2]
[420149828,1775727043163,-150.0,0.00014296,2]
[420149829,1775727043173,-150.0,0.00014296,2]
[420149830,1775727043183,-150.0,0.00014296,2]
[420149831,1775727043192,-150.0,0.00014296,2]
[420149832,1775727043203,-179.49999983,0.00014296,2]
[420149833,1775727043213,-150.0,0.00014296,2]
[420149834,1775727043223,-150.0,0.00014296,2]
[420149835,1775727043233,-150.0,0.00014296,2]
[420149836,1775727043242,-150.0,0.00014296,2]
[420149837,1775727043252,-150.0,0.00014296,2]
[420149838,1775727043261,-150.0,0.00014296,2]
[420149839,1775727043271,-150.0,0.00014296,2]
[420149840,1775727043280,-150.0,0.00014296,2]
[420149841,1775727043291,-151.13126787,0.00014296,2]
[420149842,1775727043301,-150.0,0.00014296,2]
[420149843,1775727043310,-500.0,0.00014308,2]
[420149844,1775727043320,-500.0,0.00014308,2]
[420149845,1775727043330,-500.0,0.00014308,2]
[420149846,1775727043340,-500.0,0.00014321,2]
[420149847,1775727043350,-1000.0,0.00014321,2]
[420149848,1775727043359,-1000.0,0.00014321,2]
[420149849,1775727043368,-1000.0,0.00014321,2]
[420149850,1775727043378,-1000.0,0.00014321,2]
[420149851,1775727043388,-1071.28174246,0.00014321,2]
[420149852,1775727043397,-1000.0,0.00014321,2]
[420149853,1775727043407,-421.70697719,0.00014321,2]
[420149854,1775727043416,-180.39456151,0.00014322,2]
[420149855,1775727043426,-1116.0,0.00014328,2]
[420149856,1775727043435,-1116.0,0.00014328,2]
[420149857,1775727043445,-1165.0,0.00014332,2]
[420149858,1775727043456,-1098.86809427,0.0001434,2]
[420149859,1775727043465,-3134.05674469,0.0001438,2]
[420149860,1775727043475,-1600.59,0.00014384,2]
[420149861,1775727043485,-166.66,0.00014384,2]
[420149862,1775727043495,-1509.31229783,0.0001439,2]
[420149863,1775727043505,-1573.0,0.00014392,2]
[420149864,1775727043515,-1600.0,0.00014395,2]
[420149865,1775727043525,-200.0,0.00014396,2]
[420149866,1775727043535,-162.0,0.000144,2]
[420149867,1775727043545,-162.0,0.000144,2]
[420149868,1775727043555,-162.0,0.000144,2]
[420149869,1775727043565,-162.0,0.000144,2]
[420149870,1775727043575,-1573.0,0.000144,2]
[420149871,1775727043585,-1573.0,0.000144,2]
[420149872,1775727043595,-174.58,0.000144,2]
[420149873,1775727043604,-568.28,0.000144,2]
[420149874,1775727043615,-2213.42,0.000144,2]
[420149876,1775727043625,-747.53,0.000144,2]
[420149878,1775727043636,-2979.97,0.000144,2]
[420149879,1775727043647,-674.4681078,0.00014418,2]
[420149880,1775727043657,-500.0,0.00014437,2]
[420149881,1775727043667,-301.33796977,0.00014459,2]
[420149882,1775727043677,-168.0,0.00014473,2]
[420149883,1775727043688,-156.02,0.00014477,2]
[420149884,1775727043698,-258.24,0.0001449,2]
[420149885,1775727043708,-1252.0,0.00014492,2]
[420149886,1775727043719,-1152.0,0.00014493,2]
[420149887,1775727043729,-4609.0,0.00014493,2]
[420149888,1775727043738,-180.55384577,0.00014497,2]
[420149889,1775727043748,-152.0,0.000145,9]
[420149890,1775727043758,-155.64852211,0.000145,5]
[420149891,1775727043767,-152.0,0.000145,7]
[420149892,1775727043778,-152.0,0.000145,5]
[420149893,1775727043787,-168.0,0.00014502,2]
[420149894,1775727043797,-500.0,0.00014506,2]
[420149895,1775727043807,-500.0,0.00014506,2]
[420149896,1775727043816,-500.0,0.00014506,2]
[420149897,1775727043827,-500.0,0.00014506,2]
[420149898,1775727043838,-500.0,0.00014506,2]
[420149899,1775727043848,-500.0,0.00014506,2]
[420149900,1775727043858,-500.0,0.00014506,2]
[420149901,1775727043869,-500.0,0.00014506,2]
[420149902,1775727043879,-500.0,0.00014506,2]
[420149903,1775727043889,-500.0,0.00014506,2]
[420149904,1775727043899,-162.0,0.00014506,2]
[420149905,1775727043909,-1600.0,0.00014521,2]
[420149906,1775727043920,-456.8,0.00014521,2]
[420149907,1775727043930,-786.15,0.00014521,2]
[420149908,1775727043940,-185.17306048,0.00014527,2]
[420149909,1775727043950,-634.87720346,0.00014527,2]
[420149910,1775727043960,-200.0,0.0001454,2]
[420149911,1775727043970,-164.3378222,0.00014551,2]
[420149912,1775727043980,-168.0,0.00014595,2]
[420149913,1775727043990,-2368.01,0.000146,2]
[420149914,1775727044001,-592.0,0.000146,2]
[420149915,1775727044011,-592.0,0.000146,2]
[420149916,1775727044020,-592.0,0.000146,2]
[420149917,1775727044029,-806.96,0.000146,2]
[420149918,1775727044039,-201.51,0.000146,2]
[420149919,1775727044048,-201.51,0.000146,2]
[420149920,1775727044058,-170.97,0.000146,2]
[420149921,1775727044069,-2553.71,0.000146,2]
[420149922,1775727044079,-635.04,0.000146,2]
[420149923,1775727044089,-635.04,0.000146,2]
[420149924,1775727044099,-2273.02,0.000146,2]
[420149925,1775727044109,-1119.33,0.000146,2]
[420149926,1775727044119,-1119.33,0.000146,2]
[420149927,1775727044129,-201.59,0.000146,2]
[420149928,1775727044139,-635.26,0.000146,2]
[420149929,1775727044150,-179.49999983,0.00014623,2]
[420149930,1775727044160,-151.13126787,0.00014623,2]
[420149931,1775727044170,-1573.0,0.00014652,2]
[420149932,1775727044180,-200.0,0.00014653,2]
[420149933,1775727044190,-1481.23780761,0.00014653,2]
[420149934,1775727044200,-217.15233878,0.00014653,2]
[420149935,1775727044211,-500.0,0.00014658,2]
[420149936,1775727044220,-500.0,0.00014661,2]
[420149937,1775727044230,-500.0,0.00014661,2]
[420149938,1775727044240,-500.0,0.00014661,2]
[420149939,1775727044249,-500.0,0.00014661,2]
[420149940,1775727044259,-500.0,0.00014661,2]
[420149941,1775727044269,-500.0,0.00014661,2]
[420149942,1775727044279,-500.0,0.00014661,2]
[420149943,1775727044289,-34.17843146,0.00014661,2]
[420149944,1775727044503,-316.220239,0.00012527,2]
[420149945,1775727044515,-3843.89820875,0.00012527,2]
[420149946,1775727044526,-327.365286,0.00012527,2]
[420149947,1775727044538,-344.0,0.00012527,2]
[420149948,1775727044558,-1191.51626625,0.00012527,2]
[420149949,1775727044569,-306.0,0.000131,2]
[420149950,1775727044579,-1764.7092116,0.00014,2]
[420149951,1775727044589,-465.82156854,0.00014661,2]
[420149952,1775727044598,-500.0,0.00014661,2]
[420149953,1775727044608,-500.0,0.00014661,2]
[420149954,1775727044617,-500.0,0.00014661,2]
[420149955,1775727044627,-500.0,0.00014661,2]
[420149956,1775727044638,-500.0,0.00014661,2]
[420149957,1775727044648,-500.0,0.00014661,2]
[420149958,1775727044658,-500.0,0.00014661,2]
[420149959,1775727044668,-541.4,0.00014661,2]
[420149960,1775727044677,-1000.0,0.0001467,2]
[420149961,1775727044688,-666.54570841,0.0001467,2]
[420149962,1775727044698,-150.0,0.00014691,2]
[420149963,1775727044707,-150.0,0.00014717,2]
[420149964,1775727044717,-1573.0,0.0001472,2]
[420149965,1775727044727,-1572.0,0.0001472,2]
[420149966,1775727044736,-162.0,0.0001472,2]
[420149967,1775727044746,-162.0,0.0001472,2]
[420149968,1775727044756,-969.16392012,0.0001476,2]
[420149969,1775727044768,-783.45621829,0.0001476,2]
[420149970,1775727044810,-1381.43660628,0.0001476,2]
[420149971,1775727044820,-150.0,0.00014766,2]
[420149972,1775727044829,-1000.0,0.0001477,2]
[420149973,1775727044839,-500.0,0.0001477,2]
[420149974,1775727044849,-228.08180082,0.00014784,2]
[420149975,1775727044858,-150.0,0.00014787,2]
[420149976,1775727044868,-674.4681078,0.00014789,2]
[420149977,1775727044878,-6061.39,0.00014794,2]
[420149978,1775727044888,-786.15,0.00014795,2]
[420149979,1775727044897,-956.45107068,0.00014795,2]
[420149980,1775727044907,-3255.5183785,0.000148,2]
[420149981,1775727044917,-500.0,0.00014809,2]
[420149982,1775727044926,-490.0,0.00014809,2]
[420149983,1775727044936,-500.0,0.00014809,2]
[420149984,1775727044945,-500.0,0.00014809,2]
[420149985,1775727044954,-500.0,0.00014809,2]
[420149986,1775727044964,-234.2,0.00014844,2]
[420149987,1775727044973,-1245.43216199,0.00014853,2]
[420149988,1775727044983,-7643.0,0.00014865,2]
[420149989,1775727044992,-934.59549217,0.00014868,2]
[420149990,1775727045001,-196.79007536,0.00014868,2]
[420149991,1775727045011,-1500.0,0.00014868,2]
[420149992,1775727045021,-469.46336551,0.00014868,2]
[420149993,1775727045030,-1500.0,0.00014868,2]
[420149994,1775727045039,-500.0,0.00014874,2]
[420149995,1775727045049,-500.0,0.00014874,2]
[420149996,1775727045058,-500.0,0.00014874,2]
[420149997,1775727045068,-500.0,0.00014874,2]
[420149998,1775727045078,-500.0,0.00014874,2]
[420149999,1775727045087,-500.0,0.00014874,2]
[420150000,1775727045097,-330.4258859,0.00014878,2]
[420150001,1775727045108,-500.0,0.00014886,2]
[420150002,1775727045118,-500.0,0.00014886,2]
[420150003,1775727045128,-2000.0,0.00014886,2]
[420150004,1775727045139,-2000.0,0.00014886,2]
[420150005,1775727045149,-2000.0,0.00014886,2]
[420150006,1775727045159,-2000.0,0.00014886,2]
[420150007,1775727045168,-2000.0,0.00014886,2]
[420150008,1775727045178,-2000.0,0.00014886,2]
[420150009,1775727045188,-2000.0,0.00014886,2]
[420150010,1775727045198,-2000.0,0.00014886,2]
[420150011,1775727045208,-2000.0,0.00014886,2]
[420150012,1775727045218,-1957.0,0.00014886,2]
[420150013,1775727045227,-234.2,0.00014899,2]
[420150014,1775727045237,-158.0,0.000149,2]
[420150015,1775727045247,-158.0,0.000149,2]
[420150016,1775727045256,-2300.0,0.000149,5]
[420150017,1775727045266,-500.0,0.00014924,2]
[420150018,1775727045275,-172.28,0.00014924,2]
[420150019,1775727045286,-500.0,0.00014924,2]
[420150020,1775727045295,-500.0,0.00014924,2]
[420150021,1775727045305,-500.0,0.00014924,2]
[420150023,1775727045314,-1500.0,0.00014924,2]
[420150024,1775727045324,-1500.0,0.00014924,2]
[420150025,1775727045334,-1500.0,0.00014924,2]
[420150026,1775727045344,-1500.0,0.00014924,2]
[420150027,1775727045354,-1500.0,0.00014924,2]
[420150028,1775727045363,-1500.0,0.00014924,2]
[420150029,1775727045373,-1500.0,0.00014924,2]
[420150030,1775727045383,-1500.0,0.00014924,2]
[420150031,1775727045392,-1500.0,0.00014924,2]
[420150032,1775727045402,-1346.0,0.00014924,2]
[420150033,1775727045412,-7020.97897167,0.00014925,2]
[420150034,1775727045422,-5000.0,0.00014925,2]
[420150035,1775727045432,-5000.0,0.00014925,2]
[420150036,1775727045441,-5000.0,0.00014925,2]
[420150037,1775727045451,-5000.0,0.00014925,2]
[420150038,1775727045460,-351.0,0.00014946,4]
[420150039,1775727045470,-179.49999983,0.00014951,2]
[420150040,1775727045480,-151.13126787,0.00014951,2]
[420150041,1775727045489,-234.19904089,0.00014954,2]
[420150042,1775727045499,-180.39456151,0.00014967,2]
[420150043,1775727045509,-6061.39,0.00014999,2]
[420150044,1775727045519,-400.0,0.00015,2]
[420150045,1775727045528,-400.0,0.00015,5]
[420150046,1775727045811,-123.36944972,0.00015,2]
[420150048,1775727047092,-92.98055028,0.00015,2]
[420150049,1775727047102,-439.13846193,0.00015,3]
[420150050,1775727047115,-1560.86153807,0.00015,3]
[420150051,1775727047124,-4190.39535233,0.00015,2]
[420150052,1775727047134,-500.15,0.00015,2]
[420150053,1775727047144,-200.0,0.00015,2]
[420150054,1775727047154,-5294.58622886,0.00015,2]
[420150055,1775727047164,-1383.0,0.00015,2]
[420150056,1775727047173,-2467.32194119,0.00015,2]
[420150057,1775727047185,-532.67805881,0.00015,2]
[420150058,1775727047194,-174.7822,0.00015,2]
[420150059,1775727047204,-730.0,0.00015,2]
[420150060,1775727047215,-862.0,0.00015,2]
[420150061,1775727047225,-854.06,0.00015,2]
[420150062,1775727047234,-151.0,0.00015,5]
[420150063,1775727047243,-163.8002,0.00015,2]
[420150064,1775727047253,-300.0,0.00015,2]
[420150065,1775727047263,-311.644559,0.0001501,2]
[420150066,1775727047272,-1800.0,0.0001501,2]
[420150067,1775727047282,-1800.0,0.0001501,2]
[420150068,1775727047292,-1800.0,0.0001501,2]
[420150069,1775727047302,-307.38062714,0.0001501,2]
[420150070,1775727047596,-1492.61937286,0.0001501,2]
[420150071,1775727047607,-1800.0,0.0001501,2]
[420150072,1775727047616,-1800.0,0.0001501,2]
[420150073,1775727047626,-1800.0,0.0001501,2]
[420150074,1775727047636,-1800.0,0.0001501,2]
[420150075,1775727047645,-1800.0,0.0001501,2]
[420150076,1775727047655,-1413.0,0.0001501,2]
[420150077,1775727047664,-1573.0,0.00015022,2]
[420150078,1775727047673,-1573.0,0.0001504,2]
[420150079,1775727047683,-1573.0,0.0001504,2]
[420150080,1775727047692,-1573.0,0.0001504,2]
[420150081,1775727047701,-1573.0,0.0001504,2]
[420150082,1775727047710,-1116.0,0.00015044,2]
[420150083,1775727047719,-666.0,0.00015056,2]
[420150084,1775727047729,-4613.06,0.00015057,2]
[420150085,1775727047738,-1755.61,0.00015057,2]
[420150086,1775727047747,-9929.65,0.00015057,2]
[420150087,1775727047758,-8269.01,0.00015057,2]
[420150088,1775727047767,-1090.82,0.00015057,2]
[420150089,1775727047776,-277.55659601,0.00015067,2]
[420150090,1775727047785,-786.75,0.00015068,2]
[420150091,1775727047795,-900.0,0.00015068,2]
[420150092,1775727047804,-1600.59,0.00015068,2]
[420150093,1775727047813,-801.84483363,0.00015068,2]
[420150094,1775727047823,-150.0,0.00015086,2]
[420150095,1775727047832,-511.33702692,0.00015101,2]
[420150096,1775727047842,-156.02,0.00015106,2]
[420150097,1775727047851,-150.0,0.00015127,2]
[420150098,1775727047861,-150.0,0.00015138,2]
[420150099,1775727047870,-3134.05674469,0.0001514,2]
[420150100,1775727047880,-674.4681078,0.00015159,2]
[420150101,1775727047889,-150.0,0.00015172,2]
[420150102,1775727047899,-2000.0,0.00015176,2]
[420150103,1775727047909,-230.5109,0.000152,2]
[420150104,1775727047918,-673.9,0.000152,2]
[420150105,1775727047928,-1141.58,0.000152,2]
[420150106,1775727047937,-1792.53,0.000152,2]
[420150107,1775727047947,-1885.95,0.000152,2]
[420150108,1775727047956,-675.42,0.000152,2]
[420150109,1775727047966,-1751.67,0.000152,2]
[420150110,1775727047976,-2331.19,0.000152,2]
[420150111,1775727047985,-2991.69,0.000152,2]
[420150112,1775727047995,-614.09,0.000152,2]
[420150113,1775727048005,-614.08,0.000152,2]
[420150114,1775727048015,-3500.0,0.000152,5]
[420150115,1775727048024,-200.0,0.00015201,2]
[420150116,1775727048034,-1536.04360649,0.00015201,2]
[420150117,1775727048044,-225.18697532,0.00015201,2]
[420150118,1775727048053,-644.4,0.00015205,2]
[420150119,1775727048063,-500.0,0.0001522,2]
[420150120,1775727048072,-150.0,0.00015235,2]
[420150121,1775727048083,-150.0,0.00015278,2]
[420150122,1775727048092,-179.49999983,0.00015278,2]
[420150123,1775727048101,-151.13126787,0.00015278,2]
[420150124,1775727048111,-1818.2,0.00015285,2]
[420150125,1775727048121,-4700.0,0.000153,5]
[420150126,1775727048131,-1000.0,0.00015315,2]
[420150127,1775727048141,-1000.0,0.00015315,2]
[420150128,1775727048150,-1000.0,0.00015315,2]
[420150129,1775727048159,-1000.0,0.00015315,2]
[420150130,1775727048169,-1000.0,0.00015315,2]
[420150131,1775727048179,-266.452,0.00015315,2]
[420150132,1775727048189,-500.0,0.00015359,2]
[420150133,1775727048198,-500.0,0.00015359,2]
[420150134,1775727048207,-500.0,0.00015359,2]
[420150135,1775727048217,-500.0,0.00015359,2]
[420150136,1775727048227,-500.0,0.00015359,2]
[420150137,1775727048237,-500.0,0.00015359,2]
[420150138,1775727048247,-500.0,0.00015359,2]
[420150139,1775727048257,-162.0,0.0001536,2]
[420150140,1775727048266,-1573.0,0.0001536,2]
[420150141,1775727048276,-1573.0,0.0001536,2]
[420150142,1775727048285,-162.0,0.0001536,2]
[420150143,1775727048296,-320.0,0.0001536,2]
[420150144,1775727048305,-162.0,0.0001536,2]
[420150145,1775727048315,-1573.0,0.0001539,2]
[420150146,1775727048325,-5900.0,0.000154,5]
[420150147,1775727048335,-500.0,0.00015405,2]
[420150148,1775727048345,-2000.0,0.00015405,2]
[420150149,1775727048355,-1776.10084059,0.00015416,2]
[420150150,1775727048365,-255.69750177,0.00015416,2]
[420150151,1775727048375,-580.52662888,0.00015434,2]
[420150152,1775727048384,-508.41858609,0.00015434,2]
[420150153,1775727048394,-155.25198367,0.00015437,2]
[420150154,1775727048404,-511.33702692,0.00015441,2]
[420150155,1775727048414,-1500.0,0.00015462,2]
[420150156,1775727048424,-1501.039701,0.00015462,2]
[420150157,1775727048435,-1573.0,0.00015466,2]
[420150158,1775727048444,-162.0,0.00015477,2]
[420150159,1775727048454,-150.0,0.00015482,2]
[420150160,1775727048463,-200.0,0.00015482,2]
[420150161,1775727048473,-200.0,0.00015482,2]
[420150162,1775727048484,-200.0,0.00015482,2]
[420150163,1775727048494,-1100.0,0.000155,5]
[420150164,1775727048504,-4000.0,0.00015507,2]
[420150165,1775727048514,-3134.05674469,0.0001552,2]
[420150166,1775727048524,-6023.0,0.00015527,2]
[420150167,1775727048533,-674.4681078,0.0001553,2]
[420150168,1775727048543,-500.0,0.00015552,2]
[420150169,1775727048553,-500.0,0.00015552,2]
[420150170,1775727048563,-500.0,0.00015552,2]
[420150171,1775727048572,-500.0,0.00015552,2]
[420150172,1775727048582,-509.11396522,0.00015552,2]
[420150173,1775727048592,-500.0,0.00015552,2]
[420150174,1775727048601,-502.4478995,0.00015552,2]
[420150175,1775727048611,-500.0,0.00015552,2]
[420150176,1775727048620,-500.0,0.00015552,2]
[420150177,1775727048630,-634.77288001,0.00015552,2]
[420150178,1775727048641,-500.0,0.00015552,2]
[420150179,1775727048651,-500.0,0.00015552,2]
[420150180,1775727048660,-500.0,0.00015552,2]
[420150181,1775727048670,-500.0,0.00015552,2]
[420150182,1775727048680,-150.0,0.00015559,2]
[420150183,1775727048689,-1573.0,0.00015564,2]
[420150184,1775727048699,-500.77827819,0.0001559,2]
[420150185,1775727048708,-150.0,0.00015592,2]
[420150186,1775727048718,-666.0,0.00015599,2]
[420150187,1775727048727,-710.21209782,0.00015599,2]
[420150188,1775727048737,-666.0,0.00015599,2]
[420150189,1775727048748,-6061.39,0.00015599,2]
[420150190,1775727048758,-500.0,0.00015599,2]
[420150191,1775727048768,-500.0,0.00015599,2]
[420150192,1775727048777,-510.10104137,0.00015599,2]
[420150193,1775727048786,-59793.15066933,0.000156,5]
[420150194,1775727048808,-387.22364371,0.000156,5]
[420150196,1775727461723,-1116.0,9.062e-05,2]
[420150197,1775727461745,-250.0,9.062e-05,2]
[420150198,1775727461769,-5000.0,9.062e-05,2]
[420150199,1775727461792,-250.0,9.299e-05,2]
[420150200,1775727461815,-1116.0,9.539e-05,2]
[420150201,1775727461837,-304.6026961,9.773e-05,2]
[420150202,1775727461860,-300.0,9.797e-05,2]
[420150203,1775727461882,-1200.0,9.798e-05,2]
[420150204,1775727461904,-300.0,9.798e-05,2]
[420150205,1775727461931,-150.0,9.798e-05,2]
[420150206,1775727461953,-13.3973039,9.799e-05,2]
[420150207,1775727472544,-486.6026961,9.799e-05,2]
[420150208,1775727472568,-564.3468,9.799e-05,2]
[420150209,1775727472590,-500.0,9.799e-05,2]
[420150210,1775727472618,-500.0,9.799e-05,2]
[420150211,1775727472645,-500.0,9.799e-05,2]
[420150212,1775727472675,-500.0,9.799e-05,2]
[420150213,1775727472703,-500.0,9.799e-05,2]
[420150214,1775727472731,-500.0,9.799e-05,2]
[420150215,1775727472759,-500.0,9.799e-05,2]
[420150216,1775727472787,-500.0,9.799e-05,2]
[420150217,1775727472813,-500.0,9.799e-05,2]
[420150218,1775727472840,-500.0,9.799e-05,2]
[420150219,1775727472868,-500.0,9.799e-05,2]
[420150220,1775727472895,-500.0,9.799e-05,2]
[420150221,1775727472922,-177.83473227,9.799e-05,2]
[420150222,1775727472950,-500.0,9.799e-05,2]
[420150223,1775727472976,-500.0,9.799e-05,2]
[420150224,1775727473003,-500.0,9.799e-05,2]
[420150225,1775727473026,-291.0,9.799e-05,2]
[420150226,1775727473050,-980.21577163,9.8e-05,2]
[420150227,1775727485254,-10000.0,9.8e-05,2]
[420150228,1775727496810,-500.0,9.773e-05,2]
[420150229,1775727496837,-9500.0,9.8e-05,2]
[420150230,1775727528320,268.75,5.413e-05,2]
[420150231,1775727528527,268.75,5.698e-05,2]
[420150232,1775727528732,268.75,5.983e-05,2]
[420150233,1775727528932,268.75,6.268e-05,2]
[420150234,1775727529340,268.75,6.553e-05,2]
[420150235,1775727529571,268.75,6.838e-05,2]
[420150236,1775727529787,268.75,7.123e-05,2]
[420150237,1775727529984,268.75,7.407e-05,2]
[420150238,1775727530195,139.45259508,7.692e-05,2]
[420150239,1775727530218,129.29740492,7.692e-05,2]
[420150240,1775727530386,268.75,7.977e-05,2]
[420150241,1775727530594,268.75,8.262e-05,2]
[420150242,1775727530794,268.75,8.547e-05,2]
[420150244,1775727934112,-172.67255659,8.832e-05,2]
[420150246,1775728149088,-96.07744341,8.832e-05,2]
[420150247,1775728149111,-268.75,9.117e-05,2]
[420150248,1775728149133,-268.75,9.402e-05,2]
[420150249,1775728149154,-164.35,9.487e-05,2]
[420150250,1775728149175,-1200.0,9.573e-05,2]
[420150251,1775728149196,-300.0,9.573e-05,2]
[420150252,1775728149217,-162.82075185,9.574e-05,2]
[420150254,1775728231957,-904.07510341,9.574e-05,2]
[420150255,1775728231969,-938.55,9.574e-05,2]
[420150256,1775728231980,-1510.31,9.574e-05,2]
[420150257,1775728232028,-27573.40499334,9.574e-05,2]
[420150258,1775728232037,-250.0,9.63e-05,2]
[420150259,1775728232047,-268.75,9.687e-05,2]
[420150260,1775728232057,-150.0,9.699e-05,2]
[420150261,1775728232067,-40159.84500666,9.7e-05,2]
[420150262,1775728232082,-1295.79975787,9.7e-05,2]
[420150263,1775728232094,-57244.38573547,9.7e-05,2]
[420150264,1775728232104,-5278.463,9.7e-05,2]
[420150265,1775728232114,-2913.2025,9.7e-05,2]
[420150266,1775728232124,-5000.0,9.715e-05,2]
[420150267,1775728232133,-193.0,9.715e-05,2]
[420150268,1775728232143,-500.0,9.773e-05,2]
[420150269,1775728232153,-500.0,9.799e-05,2]
[420150270,1775728232162,-297.53719247,9.799e-05,2]
[420150271,1775728232172,-268.75,9.972e-05,2]
[420150272,1775728232182,-243.10548281,0.0001,2]
[420150273,1775728232191,-200.0,0.0001,2]
[420150274,1775728232201,-154.00075719,0.0001,2]
[420150275,1775728232211,-151.0,0.0001,2]
[420150276,1775728232222,-656.0,0.00010032,2]